fUST/lending_fUST_20250725
["ID","MTS","AMOUNT","RATE_DAILY","PERIOD"]
[374610397,1753375838842,-460.0,0.00019942,2]
[374610399,1753375838851,-460.0,0.00019942,2]
[374610401,1753375838860,-460.0,0.00019942,2]
[374610403,1753375838869,-460.0,0.00019942,2]
[374610405,1753375838879,-460.0,0.00019942,2]
[374610407,1753375838888,-603.93446867,0.00019942,2]
[374610409,1753375838901,-460.0,0.00019942,2]
[374610411,1753375838910,-529.68625105,0.00019942,2]
[374610413,1753375838919,-460.0,0.00019942,2]
[374610415,1753375838932,-460.0,0.00019942,2]
[374610417,1753375838942,-460.0,0.00019942,2]
[374610419,1753375838951,-460.0,0.00019942,2]
[374610421,1753375838962,-460.0,0.00019942,2]
[374610423,1753375838972,-460.0,0.00019942,2]
[374610425,1753375838982,-460.91715273,0.00019942,2]
[374610428,1753375838992,-460.0,0.00019942,2]
[374610429,1753375839001,-460.0,0.00019942,2]
[374610431,1753375839016,-460.0,0.00019942,2]
[374610433,1753375839025,-460.0,0.00019942,2]
[374610435,1753375839034,-460.0,0.00019942,2]
[374610437,1753375839043,-497.00075972,0.00019942,2]
[374610439,1753375839055,-460.0,0.00019942,2]
[374610441,1753375839065,-460.0,0.00019942,2]
[374610443,1753375839075,-460.0,0.00019942,2]
[374610445,1753375839089,-460.0,0.00019942,2]
[374610447,1753375839099,-460.0,0.00019942,2]
[374610449,1753375839109,-460.0,0.00019942,2]
[374610451,1753375839119,-460.0,0.00019942,2]
[374610453,1753375839128,-460.0,0.00019942,2]
[374610455,1753375839138,-584.1906883,0.00019942,2]
[374610457,1753375839149,-460.0,0.00019942,2]
[374610459,1753375839159,-768.03,0.00019942,2]
[374610461,1753375839169,-460.0,0.00019942,2]
[374610463,1753375839179,-880.67,0.00019942,2]
[374610465,1753375839188,-300.05080514,0.00019942,2]
[374610467,1753375839198,-657.63,0.00019942,2]
[374610469,1753375839209,-460.0,0.00019942,2]
[374610471,1753375839218,-460.0,0.00019942,2]
[374610473,1753375839228,-460.0,0.00019942,2]
[374610475,1753375839238,-460.0,0.00019942,2]
[374610477,1753375839247,-460.0,0.00019942,2]
[374610479,1753375839257,-274.18338261,0.00019942,2]
[374610481,1753375839266,-460.0,0.00019942,2]
[374610483,1753375839275,-460.0,0.00019942,2]
[374610485,1753375839285,-460.0,0.00019942,2]
[374610487,1753375839294,-460.0,0.00019942,2]
[374610489,1753375839304,-460.0,0.00019942,2]
[374610491,1753375839313,-460.0,0.00019942,2]
[374610495,1753375839322,-460.0,0.00019942,2]
[374610497,1753375839332,-460.0,0.00019942,2]
[374610499,1753375839342,-580.97,0.00019942,2]
[374610501,1753375839351,-364.81999999,0.00019942,2]
[374610503,1753375839360,-460.0,0.00019942,2]
[374610505,1753375839370,-460.0,0.00019942,2]
[374610507,1753375839379,-460.0,0.00019942,2]
[374610509,1753375839388,-460.0,0.00019942,2]
[374610511,1753375839398,-1648.8,0.00019942,2]
[374610513,1753375839407,-460.0,0.00019942,2]
[374610515,1753375839417,-460.0,0.00019942,2]
[374610517,1753375839427,-460.0,0.00019942,2]
[374610519,1753375839436,-460.0,0.00019942,2]
[374610521,1753375839446,-1453.0,0.00019942,2]
[374610523,1753375839455,-460.0,0.00019942,2]
[374610525,1753375839464,-562.64,0.00019942,2]
[374610527,1753375839475,-196.0227969,0.00019942,2]
[374610529,1753375839486,-460.0,0.00019942,2]
[374610531,1753375839495,-460.0,0.00019942,2]
[374610533,1753375839505,-460.0,0.00019942,2]
[374610535,1753375839515,-460.0,0.00019942,2]
[374610537,1753375839524,-460.0,0.00019942,2]
[374610539,1753375839533,-460.0,0.00019942,2]
[374610542,1753375839543,-460.0,0.00019942,2]
[374610545,1753375839553,-460.0,0.00019942,2]
[374610548,1753375839563,-460.0,0.00019942,2]
[374610551,1753375839573,-460.0,0.00019942,2]
[374610555,1753375839586,-460.0,0.00019942,2]
[374610558,1753375839598,-462.01420569,0.00019942,2]
[374610560,1753375839608,-509.22,0.00019942,2]
[374610562,1753375839617,-460.0,0.00019942,2]
[374610564,1753375839627,-3303.11,0.00019942,2]
[374610566,1753375839636,-460.0,0.00019942,2]
[374610568,1753375839645,-460.0,0.00019942,2]
[374610569,1753375839656,-460.0,0.00019942,2]
[374610571,1753375839666,-460.0,0.00019942,2]
[374610573,1753375839675,-500.0,0.00019942,2]
[374610575,1753375839685,-708.56,0.00019942,2]
[374610577,1753375839694,-460.0,0.00019942,2]
[374610579,1753375839704,-400.0,0.00019942,2]
[374610581,1753375839713,-460.0,0.00019942,2]
[374610583,1753375839723,-460.0,0.00019942,2]
[374610585,1753375839732,-460.0,0.00019942,2]
[374610587,1753375839742,-460.0,0.00019942,2]
[374610590,1753375839752,-460.0,0.00019942,2]
[374610592,1753375839762,-460.0,0.00019942,2]
[374610593,1753375839771,-460.0,0.00019942,2]
[374610595,1753375839780,-460.0,0.00019942,2]
[374610597,1753375839789,-460.0,0.00019943,2]
[374610599,1753375839798,-460.0,0.00019943,2]
[374610601,1753375839808,-460.0,0.00019943,2]
[374610603,1753375839817,-460.0,0.00019943,2]
[374610605,1753375839827,-460.0,0.00019943,2]
[374610608,1753375839838,-424.87747838,0.00019943,2]
[374610610,1753375839847,-500.0,0.00019943,2]
[374610626,1753375839989,-500.0,0.00019943,2]
[374610628,1753375840000,-460.0,0.00019944,2]
[374610630,1753375840012,-460.0,0.00019944,2]
[374610632,1753375840022,-460.0,0.00019944,2]
[374610634,1753375840033,-460.0,0.00019944,2]
[374610636,1753375840043,-460.0,0.00019944,2]
[374610638,1753375840053,-460.0,0.00019944,2]
[374610640,1753375840067,-460.0,0.00019944,2]
[374610642,1753375840077,-460.70338835,0.00019944,2]
[374610644,1753375840090,-460.0,0.00019944,2]
[374610646,1753375840099,-446.49327071,0.00019944,2]
[374610648,1753375840109,-460.0,0.00019944,2]
[374610650,1753375840118,-460.0,0.00019944,2]
[374610652,1753375840126,-465.44983899,0.00019944,2]
[374610654,1753375840136,-460.0,0.00019944,2]
[374610656,1753375840145,-460.0,0.00019944,2]
[374610658,1753375840155,-460.0,0.00019944,2]
[374610660,1753375840165,-460.0,0.00019944,2]
[374610662,1753375840175,-460.0,0.00019944,2]
[374610664,1753375840184,-460.0,0.00019944,2]
[374610666,1753375840193,-460.0,0.00019944,2]
[374610668,1753375840202,-462.30774263,0.00019944,2]
[374610670,1753375840211,-458.33004213,0.00019944,2]
[374610672,1753375840220,-460.0,0.00019944,2]
[374610673,1753375840230,-460.33238742,0.00019944,2]
[374610675,1753375840239,-460.0,0.00019944,2]
[374610677,1753375840248,-460.0,0.00019944,2]
[374610680,1753375840258,-883.24,0.00019944,2]
[374610681,1753375840267,-460.0,0.00019944,2]
[374610682,1753375840276,-460.0,0.00019944,2]
[374610683,1753375840285,-473.31418441,0.00019944,2]
[374610684,1753375840294,-470.20608457,0.00019944,2]
[374610685,1753375840304,-280.65641991,0.00019973,2]
[374610686,1753375840313,-221.90957448,0.00019973,2]
[374610687,1753375840322,-460.0,0.00020215,2]
[374610688,1753375840332,-796.21,0.00020215,2]
[374610689,1753375840346,-2433.99,0.00020215,2]
[374610690,1753375840355,-498.02,0.00020215,2]
[374610691,1753375840364,-1641.33,0.00020215,2]
[374610692,1753375840373,-713.45,0.00020215,2]
[374610693,1753375840382,-460.0,0.00020215,2]
[374610694,1753375840391,-867.09,0.00020215,2]
[374610695,1753375840400,-460.0,0.00020216,2]
[374610696,1753375840409,-460.0,0.00020216,2]
[374610697,1753375840418,-504.36,0.00020216,2]
[374610698,1753375840426,-460.0,0.00020216,2]
[374610699,1753375840435,-460.0,0.00020216,2]
[374610700,1753375840444,-460.0,0.00020216,2]
[374610701,1753375840453,-460.0,0.00020216,2]
[374610702,1753375840462,-460.0,0.00020216,2]
[374610703,1753375840471,-460.0,0.00020216,2]
[374610704,1753375840480,-460.0,0.00020216,2]
[374610705,1753375840489,-768.03,0.00020216,2]
[374610706,1753375840498,-460.0,0.00020216,2]
[374610707,1753375840507,-880.67,0.00020216,2]
[374610708,1753375840516,-657.63,0.00020216,2]
[374610709,1753375840526,-460.0,0.00020216,2]
[374610710,1753375840535,-460.0,0.00020216,2]
[374610711,1753375840544,-460.0,0.00020216,2]
[374610712,1753375840553,-460.0,0.00020216,2]
[374610713,1753375840562,-460.0,0.00020216,2]
[374610714,1753375840571,-460.0,0.00020216,2]
[374610715,1753375840580,-460.0,0.00020216,2]
[374610716,1753375840592,-460.0,0.00020216,2]
[374610717,1753375840601,-460.0,0.00020216,2]
[374610718,1753375840610,-460.0,0.00020216,2]
[374610720,1753375840620,-580.97,0.00020216,2]
[374610721,1753375840629,-460.0,0.00020216,2]
[374610722,1753375840638,-460.0,0.00020216,2]
[374610723,1753375840648,-460.0,0.00020216,2]
[374610725,1753375840657,-1648.8,0.00020216,2]
[374610727,1753375840666,-460.0,0.00020216,2]
[374610729,1753375840676,-460.0,0.00020216,2]
[374610731,1753375840685,-1453.0,0.00020216,2]
[374610733,1753375840694,-562.64,0.00020216,2]
[374610735,1753375840703,-460.0,0.00020216,2]
[374610737,1753375840712,-460.0,0.00020216,2]
[374610738,1753375840721,-460.0,0.00020216,2]
[374610741,1753375840731,-550.92734134,0.00020216,2]
[374610742,1753375840740,-3303.11,0.00020216,2]
[374610744,1753375840750,-460.0,0.00020216,2]
[374610746,1753375840760,-460.0,0.00020216,2]
[374610750,1753375840769,-460.0,0.00020216,2]
[374610751,1753375840779,-500.0,0.00020216,2]
[374610753,1753375840788,-708.56,0.00020216,2]
[374610755,1753375840798,-460.0,0.00020216,2]
[374610757,1753375840807,-460.0,0.00020216,2]
[374610759,1753375840817,-460.0,0.00020216,2]
[374610761,1753375840827,-460.0,0.00020216,2]
[374610763,1753375840838,-460.0,0.00020216,2]
[374610765,1753375840848,-460.0,0.00020217,2]
[374610767,1753375840858,-460.0,0.00020217,2]
[374610769,1753375840867,-460.0,0.00020217,2]
[374610771,1753375840877,-420.73,0.00020217,2]
[374610773,1753375840887,-460.0,0.00020218,2]
[374610775,1753375840896,-460.0,0.00020218,2]
[374610777,1753375840906,-883.24,0.00020218,2]
[374610779,1753375840916,-161.74,0.0002048,3]
[374610781,1753375840926,-485.26,0.0002048,3]
[374610783,1753375840936,-460.0,0.00020489,2]
[374610785,1753375840947,-796.21,0.00020489,2]
[374610787,1753375840956,-2433.99,0.00020489,2]
[374610789,1753375840965,-1641.33,0.00020489,2]
[374610791,1753375840975,-713.45,0.00020489,2]
[374610793,1753375840983,-460.0,0.00020489,2]
[374610795,1753375840992,-867.09,0.00020489,2]
[374610797,1753375841002,-460.0,0.0002049,2]
[374610799,1753375841015,-460.0,0.0002049,2]
[374610801,1753375841025,-385.70140025,0.0002049,2]
[374610803,1753375841035,-460.0,0.0002049,2]
[374610805,1753375841045,-460.0,0.0002049,2]
[374610808,1753375841059,-460.0,0.0002049,2]
[374610809,1753375841068,-460.0,0.0002049,2]
[374610811,1753375841078,-460.0,0.0002049,2]
[374610813,1753375841091,-460.0,0.0002049,2]
[374610815,1753375841101,-768.03,0.0002049,2]
[374610818,1753375841110,-460.0,0.0002049,2]
[374610819,1753375841120,-880.67,0.0002049,2]
[374610821,1753375841129,-657.63,0.0002049,2]
[374610823,1753375841139,-460.0,0.0002049,2]
[374610825,1753375841149,-460.0,0.0002049,2]
[374610827,1753375841158,-460.0,0.0002049,2]
[374610829,1753375841168,-576.80878478,0.0002049,2]
[374610831,1753375841177,-460.0,0.0002049,2]
[374610833,1753375841186,-162.08,0.0002049,2]
[374610835,1753375841195,-460.0,0.0002049,2]
[374610837,1753375841204,-580.97,0.0002049,2]
[374610839,1753375841213,-460.0,0.0002049,2]
[374610841,1753375841223,-460.0,0.0002049,2]
[374610843,1753375841232,-460.0,0.0002049,2]
[374610845,1753375841242,-1648.8,0.0002049,2]
[374610847,1753375841251,-460.0,0.0002049,2]
[374610849,1753375841260,-460.0,0.0002049,2]
[374610851,1753375841270,-1453.0,0.0002049,2]
[374610853,1753375841279,-562.64,0.0002049,2]
[374610855,1753375841291,-460.0,0.0002049,2]
[374610857,1753375841302,-460.0,0.0002049,2]
[374610859,1753375841312,-3303.11,0.0002049,2]
[374610861,1753375841322,-460.0,0.0002049,2]
[374610863,1753375841331,-460.0,0.0002049,2]
[374610865,1753375841344,-460.0,0.0002049,2]
[374610867,1753375841353,-708.56,0.0002049,2]
[374610869,1753375841362,-460.0,0.0002049,2]
[374610871,1753375841371,-460.0,0.0002049,2]
[374610873,1753375841381,-460.0,0.0002049,2]
[374610875,1753375841390,-460.0,0.0002049,2]
[374610877,1753375841399,-460.0,0.0002049,2]
[374610879,1753375841408,-460.0,0.00020491,2]
[374610881,1753375841417,-883.24,0.00020492,2]
[374610883,1753375841426,-502.64339329,0.00020512,2]
[374610885,1753375841436,-500.0,0.00020512,2]
[374610887,1753375841445,-500.0,0.00020512,2]
[374610889,1753375841455,-500.0,0.00020564,2]
[374610890,1753375841464,-500.0,0.00020564,2]
[374610892,1753375841473,-538.47238852,0.00020763,2]
[374610894,1753375841483,-796.21,0.00020763,2]
[374610896,1753375841492,-2433.99,0.00020763,2]
[374610898,1753375841501,-1641.33,0.00020763,2]
[374610900,1753375841511,-713.45,0.00020763,2]
[374610902,1753375841522,-460.0,0.00020763,2]
[374610904,1753375841531,-867.09,0.00020763,2]
[374610906,1753375841540,-606.7823924,0.00020764,2]
[374610908,1753375841550,-460.0,0.00020764,2]
[374610910,1753375841559,-552.80743946,0.00020764,2]
[374610912,1753375841568,-460.0,0.00020764,2]
[374610914,1753375841578,-460.0,0.00020764,2]
[374610916,1753375841589,-460.0,0.00020764,2]
[374610918,1753375841599,-460.0,0.00020764,2]
[374610920,1753375841608,-768.03,0.00020764,2]
[374610922,1753375841618,-460.0,0.00020764,2]
[374610924,1753375841627,-880.67,0.00020764,2]
[374610926,1753375841637,-657.63,0.00020764,2]
[374610928,1753375841647,-460.0,0.00020764,2]
[374610930,1753375841657,-460.0,0.00020764,2]
[374610932,1753375841666,-460.0,0.00020764,2]
[374610934,1753375841676,-460.0,0.00020764,2]
[374610936,1753375841686,-580.97,0.00020764,2]
[374610939,1753375841698,-460.0,0.00020764,2]
[374610940,1753375841707,-460.0,0.00020764,2]
[374610942,1753375841716,-460.0,0.00020764,2]
[374610945,1753375841727,-1648.8,0.00020764,2]
[374610947,1753375841737,-460.0,0.00020764,2]
[374610949,1753375841748,-460.0,0.00020764,2]
[374610951,1753375841758,-1453.0,0.00020764,2]
[374610953,1753375841768,-562.64,0.00020764,2]
[374610955,1753375841777,-460.0,0.00020764,2]
[374610957,1753375841787,-460.0,0.00020764,2]
[374610958,1753375841796,-3303.11,0.00020764,2]
[374610960,1753375841805,-460.0,0.00020764,2]
[374610962,1753375841816,-460.0,0.00020764,2]
[374610965,1753375841826,-460.0,0.00020764,2]
[374610967,1753375841836,-708.56,0.00020764,2]
[374610968,1753375841847,-460.0,0.00020764,2]
[374610971,1753375841856,-460.0,0.00020764,2]
[374610973,1753375841866,-460.0,0.00020764,2]
[374610975,1753375841875,-166.26388432,0.00020764,2]
[374610976,1753375841884,-460.0,0.00020764,2]
[374610979,1753375841894,-460.0,0.00020765,2]
[374610981,1753375841904,-460.0,0.00020766,2]
[374610983,1753375841913,-560.67393125,0.00020766,2]
[374610985,1753375841922,-460.75328239,0.00020766,2]
[374610987,1753375841931,-460.0,0.00020766,2]
[374610989,1753375841940,-385.51347144,0.00020766,2]
[374610991,1753375841950,-883.24,0.00020766,2]
[374610993,1753375841959,-214.7213231,0.00020793,2]
[374610995,1753375841968,-12624.810388,0.00020793,2]
[374610997,1753375841979,-846.96064714,0.000209,4]
[374610999,1753375841988,-796.21,0.00021037,2]
[374611001,1753375841998,-2433.99,0.00021037,2]
[374611003,1753375842010,-1641.33,0.00021037,2]
[374611005,1753375842020,-713.45,0.00021037,2]
[374611007,1753375842030,-460.0,0.00021037,2]
[374611009,1753375842039,-867.09,0.00021037,2]
[374611010,1753375842049,-460.0,0.00021038,2]
[374611012,1753375842059,-389.07,0.00021038,2]
[374611014,1753375842068,-460.0,0.00021038,2]
[374611016,1753375842078,-460.0,0.00021038,2]
[374611018,1753375842089,-460.0,0.00021038,2]
[374611020,1753375842098,-768.03,0.00021038,2]
[374611022,1753375842108,-460.0,0.00021038,2]
[374611024,1753375842118,-880.67,0.00021038,2]
[374611026,1753375842128,-657.63,0.00021038,2]
[374611028,1753375842138,-460.0,0.00021038,2]
[374611030,1753375842147,-460.0,0.00021038,2]
[374611032,1753375842157,-441.56878748,0.00021038,2]
[374611034,1753375842167,-460.0,0.00021038,2]
[374611036,1753375842176,-580.97,0.00021038,2]
[374611038,1753375842186,-460.0,0.00021038,2]
[374611040,1753375842196,-460.0,0.00021038,2]
[374611043,1753375842206,-460.0,0.00021038,2]
[374611044,1753375842216,-1648.8,0.00021038,2]
[374611046,1753375842226,-565.61499611,0.00021038,2]
[374611049,1753375842236,-460.0,0.00021038,2]
[374611051,1753375842247,-1453.0,0.00021038,2]
[374611053,1753375842257,-562.64,0.00021038,2]
[374611055,1753375842267,-460.0,0.00021038,2]
[374611056,1753375842277,-460.0,0.00021038,2]
[374611059,1753375842287,-3303.11,0.00021038,2]
[374611061,1753375842297,-460.0,0.00021038,2]
[374611063,1753375842314,-460.0,0.00021038,2]
[374611065,1753375842324,-460.0,0.00021038,2]
[374611066,1753375842335,-708.56,0.00021038,2]
[374611068,1753375842347,-460.0,0.00021038,2]
[374611070,1753375842356,-460.0,0.00021038,2]
[374611071,1753375842366,-460.0,0.00021038,2]
[374611073,1753375842376,-460.0,0.00021038,2]
[374611074,1753375842386,-883.24,0.0002104,2]
[374611075,1753375842396,-846.96064712,0.00021107,4]
[374611076,1753375842406,-502.39595311,0.00021112,2]
[374611077,1753375842415,-218.33169195,0.00021112,2]
[374611078,1753375842425,-1069.01348178,0.00021235,2]
[374611079,1753375842435,-796.21,0.00021311,2]
[374611080,1753375842446,-2433.99,0.00021311,2]
[374611082,1753375842455,-1641.33,0.00021311,2]
[374611083,1753375842465,-713.45,0.00021311,2]
[374611085,1753375842475,-460.0,0.00021311,2]
[374611087,1753375842484,-867.09,0.00021311,2]
[374611090,1753375842494,-540.72,0.00021312,2]
[374611094,1753375842504,-460.0,0.00021312,2]
[374611096,1753375842513,-524.83339064,0.00021312,2]
[374611098,1753375842523,-340.5862972,0.00021312,2]
[374611100,1753375842532,-768.03,0.00021312,2]
[374611102,1753375842541,-460.0,0.00021312,2]
[374611105,1753375842551,-880.67,0.00021312,2]
[374611106,1753375842562,-657.63,0.00021312,2]
[374611108,1753375842572,-460.0,0.00021312,2]
[374611110,1753375842581,-607.38,0.00021312,2]
[374611112,1753375842593,-460.0,0.00021312,2]
[374611114,1753375842603,-580.97,0.00021312,2]
[374611117,1753375842613,-460.0,0.00021312,2]
[374611120,1753375842622,-460.0,0.00021312,2]
[374611122,1753375842632,-460.0,0.00021312,2]
[374611124,1753375842642,-1648.8,0.00021312,2]
[374611126,1753375842651,-460.0,0.00021312,2]
[374611128,1753375842662,-1453.0,0.00021312,2]
[374611130,1753375842671,-562.64,0.00021312,2]
[374611131,1753375842681,-460.0,0.00021312,2]
[374611133,1753375842690,-460.0,0.00021312,2]
[374611135,1753375842700,-3303.11,0.00021312,2]
[374611136,1753375842709,-460.0,0.00021312,2]
[374611138,1753375842719,-460.0,0.00021312,2]
[374611140,1753375842728,-460.0,0.00021312,2]
[374611141,1753375842738,-708.56,0.00021312,2]
[374611143,1753375842747,-460.0,0.00021312,2]
[374611145,1753375842757,-460.0,0.00021312,2]
[374611147,1753375842767,-460.0,0.00021312,2]
[374611149,1753375842776,-460.0,0.00021312,2]
[374611151,1753375842786,-846.96064712,0.00021314,5]
[374611153,1753375842795,-883.24,0.00021314,2]
[374611155,1753375842804,-510.28,0.00021335,2]
[374611157,1753375842813,-160.0,0.00021478,2]
[374611158,1753375842823,-20011.51413845,0.00021486,2]
[374611159,1753375842832,-846.96064712,0.00021521,5]
[374611160,1753375842844,-796.21,0.00021585,2]
[374611161,1753375842854,-2433.99,0.00021585,2]
[374611163,1753375842863,-1641.33,0.00021585,2]
[374611165,1753375842873,-713.45,0.00021585,2]
[374611167,1753375842882,-460.0,0.00021585,2]
[374611169,1753375842893,-867.09,0.00021585,2]
[374611171,1753375842902,-307.62682723,0.00021586,2]
[374611173,1753375842911,-768.03,0.00021586,2]
[374611174,1753375842920,-460.0,0.00021586,2]
[374611176,1753375842929,-880.67,0.00021586,2]
[374611178,1753375842939,-657.63,0.00021586,2]
[374611180,1753375842948,-460.0,0.00021586,2]
[374611182,1753375842958,-460.0,0.00021586,2]
[374611184,1753375842967,-580.97,0.00021586,2]
[374611186,1753375842979,-460.0,0.00021586,2]
[374611189,1753375842988,-460.0,0.00021586,2]
[374611190,1753375842999,-498.14,0.00021586,2]
[374611192,1753375843010,-1648.8,0.00021586,2]
[374611195,1753375843021,-460.0,0.00021586,2]
[374611210,1753375843139,-1453.0,0.00021586,2]
[374611212,1753375843150,-562.64,0.00021586,2]
[374611214,1753375843159,-460.0,0.00021586,2]
[374611216,1753375843169,-460.0,0.00021586,2]
[374611218,1753375843180,-3303.11,0.00021586,2]
[374611220,1753375843190,-460.0,0.00021586,2]
[374611222,1753375843199,-460.0,0.00021586,2]
[374611224,1753375843208,-460.0,0.00021586,2]
[374611226,1753375843218,-708.56,0.00021586,2]
[374611228,1753375843227,-460.0,0.00021586,2]
[374611230,1753375843237,-460.0,0.00021586,2]
[374611232,1753375843246,-277.24,0.00021586,2]
[374611234,1753375843255,-460.0,0.00021586,2]
[374611236,1753375843264,-883.24,0.00021588,2]
[374611238,1753375843274,-1999.0,0.00021656,2]
[374611240,1753375843283,-1069.01348174,0.00021709,2]
[374611242,1753375843293,-420.0,0.00021714,2]
[374611244,1753375843302,-846.96064712,0.00021728,5]
[374611246,1753375843312,-1680.0,0.00021817,2]
[374611248,1753375843321,-485.24,0.0002185,3]
[374611250,1753375843330,-323.48,0.0002185,3]
[374611252,1753375843340,-796.21,0.00021859,2]
[374611254,1753375843350,-2433.99,0.00021859,2]
[374611256,1753375843360,-1641.33,0.00021859,2]
[374611258,1753375843371,-713.45,0.00021859,2]
[374611260,1753375843380,-221.8448674,0.00021859,2]
[374611262,1753375843389,-867.09,0.00021859,2]
[374611264,1753375843399,-768.03,0.0002186,2]
[374611266,1753375843408,-460.0,0.0002186,2]
[374611268,1753375843419,-880.67,0.0002186,2]
[374611269,1753375843428,-657.63,0.0002186,2]
[374611271,1753375843438,-460.0,0.0002186,2]
[374611274,1753375843448,-460.0,0.0002186,2]
[374611276,1753375843458,-580.97,0.0002186,2]
[374611278,1753375843468,-460.0,0.0002186,2]
[374611279,1753375843478,-460.0,0.0002186,2]
[374611281,1753375843488,-1648.8,0.0002186,2]
[374611283,1753375843498,-460.0,0.0002186,2]
[374611285,1753375843507,-1453.0,0.0002186,2]
[374611287,1753375843516,-562.64,0.0002186,2]
[374611289,1753375843526,-460.0,0.0002186,2]
[374611291,1753375843536,-460.0,0.0002186,2]
[374611293,1753375843546,-3303.11,0.0002186,2]
[374611295,1753375843555,-460.0,0.0002186,2]
[374611297,1753375843565,-460.0,0.0002186,2]
[374611299,1753375843575,-460.0,0.0002186,2]
[374611301,1753375843584,-708.56,0.0002186,2]
[374611303,1753375843595,-460.0,0.0002186,2]
[374611305,1753375843604,-460.0,0.0002186,2]
[374611307,1753375843614,-460.0,0.0002186,2]
[374611309,1753375843624,-883.24,0.00021862,2]
[374611311,1753375843634,-846.96064712,0.00021934,6]
[374611313,1753375843643,-5000.0,0.00022,2]
[374611315,1753375843652,-1359.49,0.00022,7]
[374611317,1753375843662,-2115.88,0.00022,7]
[374611319,1753375843671,-166.67,0.00022,2]
[374611321,1753375843680,-173.0,0.00022,2]
[374611323,1753375843690,-260.0,0.00022026,2]
[374611325,1753375843699,-796.21,0.00022133,2]
[374611327,1753375843713,-2433.99,0.00022133,2]
[374611329,1753375843723,-1641.33,0.00022133,2]
[374611331,1753375843732,-713.45,0.00022133,2]
[374611333,1753375843741,-867.09,0.00022133,2]
[374611335,1753375843751,-768.03,0.00022134,2]
[374611337,1753375843760,-507.03818832,0.00022134,2]
[374611339,1753375843771,-880.67,0.00022134,2]
[374611341,1753375843780,-657.63,0.00022134,2]
[374611343,1753375843790,-460.0,0.00022134,2]
[374611345,1753375843799,-460.0,0.00022134,2]
[374611347,1753375843809,-580.97,0.00022134,2]
[374611349,1753375843819,-442.66134115,0.00022134,2]
[374611351,1753375843828,-205.43,0.00022134,2]
[374611353,1753375843838,-1648.8,0.00022134,2]
[374611355,1753375843847,-460.0,0.00022134,2]
[374611357,1753375843856,-1453.0,0.00022134,2]
[374611359,1753375843865,-562.64,0.00022134,2]
[374611361,1753375843875,-460.0,0.00022134,2]
[374611363,1753375843884,-460.0,0.00022134,2]
[374611365,1753375843894,-3303.11,0.00022134,2]
[374611367,1753375843903,-460.0,0.00022134,2]
[374611369,1753375843912,-460.0,0.00022134,2]
[374611371,1753375843923,-460.0,0.00022134,2]
[374611373,1753375843932,-708.56,0.00022134,2]
[374611375,1753375843942,-460.0,0.00022134,2]
[374611377,1753375843952,-594.7788558,0.00022134,2]